bitfinex/quotes_ETHUSD_20220219
["timestamp","ask_amount","ask_price","bid_price","bid_amount"]
[1645256581226,1.50683206,2817.2,2817.0,0.00223366]
[1645256582070,1.50683206,2817.2,2816.8,0.90237774]
[1645256582467,1.50683206,2817.2,2817.0,0.00223366]
[1645256583268,1.50683206,2817.2,2816.9,0.02766722]
[1645256583467,1.50683206,2817.2,2817.0,0.00223366]
[1645256584471,1.50683206,2817.2,2816.9,0.02766722]
[1645256584869,1.50683206,2817.2,2817.0,0.00223366]
[1645256585718,1.50683206,2817.2,2816.9,0.02766722]
[1645256585916,1.50683206,2817.2,2817.0,0.00223366]
[1645256587018,1.50683206,2817.2,2816.9,0.02766722]
[1645256587317,1.50683206,2817.2,2817.0,0.00223366]
[1645256588120,1.50683206,2817.2,2816.9,0.02766722]
[1645256588325,1.50683206,2817.2,2817.0,0.00223366]
[1645256588520,0.01230964,2817.1,2817.0,0.00223366]
[1645256588717,1.5191417,2817.1,2817.0,0.00223366]
[1645256589367,1.5191417,2817.1,2816.7,0.90237774]
[1645256589567,0.01230964,2817.1,2816.9,0.00223368]
[1645256590568,0.01230964,2817.1,2816.7,0.90237774]
[1645256590867,0.01230964,2817.1,2816.9,0.0022337]
[1645256591670,0.01230964,2817.1,2816.7,0.90237774]
[1645256591869,0.01230964,2817.1,2816.8,0.90237774]
[1645256592069,0.01230964,2817.1,2816.9,0.0022337]
[1645256592920,0.01230964,2817.1,2816.8,0.90237774]
[1645256593120,0.01230964,2817.1,2816.9,0.0022337]
[1645256593318,0.01139586,2817.1,2816.9,0.0022337]
[1645256594220,0.01139586,2817.1,2816.7,0.90237774]
[1645256594420,0.01139586,2817.1,2816.9,0.0022337]
[1645256595023,1.50692269,2817.0,2816.9,0.0022337]
[1645256595421,1.50692269,2817.0,2816.6,0.9063859]
[1645256595622,1.50692269,2817.0,2816.8,0.00223372]
[1645256596672,1.50692269,2817.0,2816.6,0.9063859]
[1645256596866,1.50692269,2817.0,2816.8,0.00223375]
[1645256597766,1.50692269,2817.0,2816.6,0.9063859]
[1645256597965,1.50692269,2817.0,2816.8,0.00223375]
[1645256598769,1.52029541,2817.0,2816.8,0.00223375]
[1645256598969,0.01337272,2817.0,2816.7,0.90237774]
[1645256599174,0.01337272,2817.0,2816.8,0.00223375]
[1645256599368,0.74380739,2817.3,2816.8,0.00223375]
[1645256599569,1.50688867,2817.2,2816.8,0.00223375]
[1645256600168,1.50688867,2817.2,2816.7,0.90237774]
[1645256600442,1.50688867,2817.2,2816.9,0.00223371]
[1645256601440,1.50688867,2817.2,2816.7,0.90237774]
[1645256601637,1.50688867,2817.2,2816.9,0.00223369]
[1645256602637,1.50688867,2817.2,2816.7,0.90237774]
[1645256602838,1.50688867,2817.2,2816.9,0.00223369]
[1645256603040,0.01106612,2817.1,2816.9,0.00223369]
[1645256603838,0.01106612,2817.1,2816.7,0.90237774]
[1645256604069,1.10663708,2816.8,2816.7,0.90237774]
[1645256606670,0.01106612,2817.1,2816.7,0.90237774]
[1645256607671,1.08148558,2816.9,2816.8,0.00223375]
[1645256608726,1.08148558,2816.9,2816.7,0.94414159]
[1645256609731,1.08148558,2816.9,2816.7,0.94190782]
[1645256609928,1.08148558,2816.9,2816.7,0.94414161]
[1645256610935,1.08148558,2816.9,2816.7,0.94190782]
[1645256611135,1.08148558,2816.9,2816.6,0.00400816]
[1645256611136,11.5,2816.7,2816.6,0.00400816]
[1645256611338,11.5,2816.7,2816.3,0.00400816]
[1645256611339,23.81702257,2816.7,2816.3,0.00400816]
[1645256611586,0.84268376,2816.4,2816.3,0.00400816]
[1645256611775,0.84268376,2816.4,2816.1,0.90237774]
[1645256611974,0.84268376,2816.4,2816.1,0.9063859]
[1645256612481,0.84268376,2816.4,2816.1,0.90861991]
[1645256612675,1.73088376,2816.4,2816.1,0.90861991]
[1645256613276,2.61908376,2816.4,2816.1,0.9063859]
[1645256613477,2.61908376,2816.4,2816.1,0.00400816]
[1645256613676,2.61908376,2816.4,2816.1,0.90861991]
[1645256613876,2.61908376,2816.4,2816.1,0.00624217]
[1645256614276,2.61908376,2816.4,2816.1,0.90861991]
[1645256614477,2.61908376,2816.4,2816.1,0.00400816]
[1645256614877,2.61908376,2816.4,2816.1,0.00624217]
[1645256615721,2.61908376,2816.4,2816.1,0.00400816]
[1645256615922,2.61908376,2816.4,2816.1,0.00624218]
[1645256617026,2.61908376,2816.4,2816.1,0.00400816]
[1645256617222,1.7764,2816.4,2816.1,0.00624218]
[1645256617428,0.1774,2816.9,2816.1,0.90861992]
[1645256617631,3.9438,2817.2,2816.2,0.9063859]
[1645256617823,3.9438,2817.2,2816.3,0.00400816]
[1645256617824,1.5070333,2817.1,2816.3,0.00400816]
[1645256618425,1.5070333,2817.1,2816.6,0.00223384]
[1645256618426,1.18837364,2816.9,2816.6,0.00223384]
[1645256618922,1.50704627,2816.8,2816.6,0.00223384]
[1645256619172,1.18837364,2816.9,2816.6,0.00223384]
[1645256619374,1.18837364,2816.9,2816.5,0.00400816]
[1645256619572,1.18837364,2816.9,2816.6,0.00223384]
[1645256620572,1.18837364,2816.9,2816.5,0.00400816]
[1645256620773,1.18837364,2816.9,2816.6,0.00223382]
[1645256621374,1.50705811,2816.8,2816.6,0.00223382]
[1645256621772,1.50705811,2816.8,2816.3,0.00400816]
[1645256622071,1.50705811,2816.8,2816.6,0.00223384]
[1645256622928,1.50705811,2816.8,2816.3,0.00400816]
[1645256622929,0.88809,2816.7,2816.3,0.00400816]
[1645256623126,0.0254784,2816.8,2816.6,0.00223383]
[1645256624126,0.0254784,2816.8,2816.3,0.00400816]
[1645256624325,0.0254784,2816.8,2816.6,0.00223383]
[1645256625331,0.0254784,2816.8,2816.3,0.00400816]
[1645256625524,0.0254784,2816.8,2816.7,0.5]
[1645256625724,0.0254784,2816.8,2816.6,0.00223383]
[1645256626588,0.0254784,2816.8,2816.3,0.00400816]
[1645256626773,0.0254784,2816.8,2816.6,0.00223383]
[1645256627676,0.0254784,2816.8,2816.3,0.00400816]
[1645256628078,0.0254784,2816.8,2816.6,0.00223383]
[1645256628876,0.0254784,2816.8,2816.3,0.00400816]
[1645256629076,0.88811,2816.6,2816.3,0.00400816]
[1645256629278,0.88811,2816.6,2816.1,0.00400816]
[1645256630320,0.88811,2816.6,2816.2,0.00223397]
[1645256630723,0.48787341,2816.6,2816.2,0.00223397]
[1645256631123,0.8881,2816.7,2816.2,0.00223397]
[1645256631324,0.88683174,2816.7,2816.1,0.00400816]
[1645256631524,0.88683174,2816.7,2816.3,0.00223395]
[1645256631726,1.18379459,2816.4,2816.3,0.00223395]
[1645256632523,1.18379459,2816.4,2816.1,0.00400816]
[1645256632725,1.18379459,2816.4,2816.2,0.00223397]
[1645256633137,0.88683174,2816.7,2816.2,0.00223397]
[1645256633331,0.02461242,2816.5,2816.2,0.00223397]
[1645256633727,0.02461242,2816.5,2816.1,0.9063859]
[1645256634181,0.02461242,2816.5,2816.2,0.00223398]
[1645256634980,0.02461242,2816.5,2816.1,0.9063859]
[1645256635179,0.02461242,2816.5,2816.2,0.00223398]
[1645256636178,0.02461242,2816.5,2816.1,0.9063859]
[1645256636378,0.02461242,2816.5,2816.2,0.00223398]
[1645256637081,0.02461242,2816.5,2816.2,0.90461172]
[1645256637379,0.02461242,2816.5,2816.2,0.90237774]
[1645256637579,0.02461242,2816.5,2816.2,0.90461172]
[1645256638527,0.02461242,2816.5,2816.2,0.90237774]
[1645256638725,1.04491605,2816.7,2816.4,0.01145005]
[1645256639925,1.04491605,2816.7,2816.4,0.01368395]
[1645256641027,1.04491605,2816.7,2816.4,0.01145005]
[1645256641228,1.04491605,2816.7,2816.4,0.01368395]
[1645256642077,1.04491605,2816.7,2816.4,0.01145005]
[1645256642476,1.04491605,2816.7,2816.4,0.01368395]
[1645256643276,1.04491605,2816.7,2816.5,0.01337348]
[1645256643480,1.04491605,2816.7,2816.6,0.01268496]
[1645256643879,2.55203408,2816.7,2816.6,0.01268496]
[1645256647237,1.50711803,2816.7,2816.6,0.01268496]
[1645256647632,1.50711803,2816.8,2816.6,0.01268496]
[1645256647832,1.50711803,2816.7,2816.6,0.01268496]
[1645256648235,1.50711803,2816.8,2816.6,0.01268496]
[1645256648433,2.55399047,2816.7,2816.6,0.01268496]
[1645256648835,2.58830554,2816.7,2816.5,0.00223386]
[1645256649071,1.08118751,2816.7,2816.5,0.00223386]
[1645256649472,1.08118751,2816.7,2816.2,0.00400816]
[1645256649673,1.08118751,2816.7,2816.5,0.00223387]
[1645256650575,1.08118751,2816.7,2816.2,0.00400816]
[1645256650774,1.50712626,2816.6,2816.5,0.00223387]
[1645256651775,1.50712626,2816.6,2816.2,0.00400816]
[1645256651975,1.50712626,2816.6,2816.4,0.00223389]
[1645256653033,1.50712626,2816.6,2816.2,0.00400816]
[1645256653234,1.50712626,2816.6,2816.4,0.00223392]
[1645256653636,1.51981797,2816.6,2816.4,0.00223392]
[1645256653839,0.01269171,2816.6,2816.4,0.00223392]
[1645256654236,0.01269171,2816.6,2816.2,0.00400816]
[1645256654436,1.5071567,2816.5,2816.4,0.00223392]
[1645256655439,1.5071567,2816.5,2816.1,0.00400816]
[1645256655642,0.8882,2816.4,2816.1,0.00400816]
[1645256655843,0.8882,2816.4,2816.3,0.00223394]
[1645256656248,2.3953567,2816.4,2816.3,0.00223394]
[1645256656679,2.3953567,2816.4,2816.1,0.00400816]
[1645256656875,1.04916936,2816.2,2815.8,0.9063859]
[1645256657272,1.04916936,2816.2,2815.8,1.2063859]
[1645256658074,1.04916936,2816.2,2815.9,0.00223412]
[1645256658677,0.04952767,2816.5,2815.9,0.00223412]
[1645256658880,1.50728815,2816.4,2815.9,0.00223412]
[1645256659082,1.50728815,2816.4,2815.8,1.2063859]
[1645256659280,1.50728815,2816.4,2816.1,0.00223406]
[1645256660345,1.50728815,2816.4,2816.1,0.91365319]
[1645256660544,1.50728815,2816.4,2816.1,0.91989539]
[1645256661346,1.50728815,2816.4,2816.1,0.91766135]
[1645256661753,0.04952767,2816.5,2816.1,0.91989539]
[1645256661942,1.5071962,2816.4,2816.1,0.91989539]
[1645256662145,1.5071962,2816.4,2816.1,2.51989539]
[1645256662343,0.04952767,2816.5,2816.1,2.51989539]
[1645256662544,0.04952767,2816.5,2816.1,2.51766135]
[1645256662945,0.04952767,2816.5,2816.1,2.51989539]
[1645256663544,0.01264837,2816.3,2816.1,2.51989539]
[1645256663746,0.01264837,2816.3,2816.1,2.51766135]
[1645256663944,0.01264837,2816.3,2816.1,1.51766135]
[1645256664180,0.01264837,2816.3,2816.1,1.5198954]
[1645256664980,0.01264837,2816.3,2816.1,1.51766135]
[1645256665380,0.01264837,2816.3,2816.1,1.5198954]
[1645256666186,0.01264837,2816.3,2816.1,1.51766135]
[1645256666379,0.01264837,2816.3,2816.1,0.60624221]
[1645256667182,0.01264837,2816.3,2816.1,0.00624221]
[1645256667387,0.01264837,2816.3,2816.1,0.00400816]
[1645256667584,0.01264837,2816.3,2815.9,2.2476355]
[1645256667824,0.01264837,2816.3,2816.1,0.00223406]
[1645256668735,0.01264837,2816.3,2816.0,5.70237774]
[1645256668929,1.7917,2816.9,2816.2,0.01148364]
[1645256669128,1.50718614,2816.8,2816.2,0.01148364]
[1645256669536,1.50718614,2816.8,2816.4,0.87212203]
[1645256669730,1.50563535,2816.8,2816.4,1.47212203]
[1645256670127,1.50563535,2816.8,2816.5,0.00223389]
[1645256671127,1.50563535,2816.8,2816.4,1.47212203]
[1645256671326,1.50563535,2816.8,2816.5,0.00223387]
[1645256672180,1.50563535,2816.8,2816.4,0.87212203]
[1645256672677,1.10211039,2816.8,2816.5,0.00223387]
[1645256673275,1.10211039,2816.8,2816.6,0.01268496]
[1645256674877,1.10211039,2816.8,2816.6,0.01491881]
[1645256675925,1.10211039,2816.8,2816.6,0.01268496]
[1645256676127,1.10211039,2816.8,2816.6,0.01491881]
[1645256678231,1.10211039,2816.8,2816.6,0.01268496]
[1645256678429,1.10211039,2816.8,2816.6,0.01491881]
[1645256678828,0.01164219,2816.7,2816.6,0.00223385]
[1645256679478,0.01164219,2816.7,2816.1,0.30400816]
[1645256679682,0.95407182,2816.3,2816.2,0.00400816]
[1645256679880,0.95407182,2816.3,2816.1,0.3]
[1645256680979,0.95407182,2816.3,2816.1,0.30223405]
[1645256681176,0.89974219,2816.7,2816.1,0.30223405]
[1645256681377,0.89974219,2816.7,2816.2,0.00400816]
[1645256682078,0.89974219,2816.7,2816.3,0.00223562]
[1645256682278,1.17157049,2816.5,2816.3,0.00223562]
[1645256683127,0.0374902,2816.3,2816.2,0.00400816]
[1645256683323,0.0374902,2816.3,2816.0,0.30400816]
[1645256684424,0.0374902,2816.3,2816.0,0.30624391]
[1645256685426,0.0374902,2816.3,2816.0,3.80400816]
[1645256685626,0.0374902,2816.3,2816.0,3.8062438]
[1645256686026,0.0374902,2816.3,2816.0,0.3062438]
[1645256686675,0.0374902,2816.3,2816.0,0.30400816]
[1645256686974,0.0374902,2816.3,2816.0,0.3062438]
[1645256687775,0.0374902,2816.3,2816.0,0.30400816]
[1645256689374,0.0374902,2816.3,2816.0,0.30624214]
[1645256690178,0.0374902,2816.3,2816.0,0.30400816]
[1645256690629,0.0374902,2816.3,2816.0,0.30624214]
[1645256691430,0.0374902,2816.3,2816.0,0.30400816]
[1645256691631,0.0374902,2816.3,2816.0,0.30624214]
[1645256692631,0.0374902,2816.3,2816.0,0.30400816]
[1645256692833,0.0374902,2816.3,2816.0,0.30623952]
[1645256693833,0.0374902,2816.3,2816.0,0.30400816]
[1645256694089,0.0374902,2816.3,2816.0,0.30623952]
[1645256695193,0.0374902,2816.3,2816.0,0.30400816]
[1645256695385,0.0374902,2816.3,2816.0,0.30623952]
[1645256696182,0.0374902,2816.3,2816.0,0.30400816]
[1645256696582,0.0374902,2816.3,2816.0,0.30623971]
[1645256697385,0.0374902,2816.3,2816.0,0.30400816]
[1645256697583,0.0374902,2816.3,2816.0,0.30623971]
[1645256698633,0.0374902,2816.3,2816.0,0.30400816]
[1645256698834,2.17059974,2816.8,2816.2,0.01148364]
[1645256699034,1.50719633,2816.7,2816.2,0.01148364]
[1645256700236,1.50719633,2816.7,2816.3,0.00223141]
[1645256701135,1.50719633,2816.7,2816.2,0.01148364]
[1645256701342,1.50719633,2816.7,2816.4,0.00223139]
[1645256702177,1.50719633,2816.7,2816.2,0.0154918]
[1645256702379,1.50719633,2816.7,2816.2,4.41786954]
[1645256702578,1.50719633,2816.8,2816.7,0.00088202]
[1645256702780,1.50696248,2816.8,2816.7,0.00088202]
[1645256702977,1.50696248,2817.1,2816.7,0.00088202]
[1645256703182,0.00564882,2817.1,2816.7,0.00088202]
[1645256703382,1.50696248,2817.0,2816.7,0.52088202]
[1645256703578,0.00564882,2817.3,2816.8,0.94333568]
[1645256703579,1.50696248,2816.9,2816.8,0.94333568]
[1645256703786,1.50696248,2817.0,2816.8,0.9455669]
[1645256703978,1.11091597,2817.3,2816.8,1.2455669]
[1645256703979,1.50696248,2816.9,2816.8,1.2455669]
[1645256704180,1.11656479,2817.3,2816.8,1.2455669]
[1645256704579,1.11656479,2817.3,2816.8,1.24333568]
[1645256704779,0.00564882,2817.3,2816.8,1.24333568]
[1645256704978,0.00564882,2817.3,2816.9,0.00223116]
[1645256705837,0.00564882,2817.3,2816.8,1.24333568]
[1645256706029,0.00564882,2817.3,2817.0,0.00223114]
[1645256706231,1.09616332,2817.4,2817.0,0.00223114]
[1645256707031,1.09616332,2817.4,2816.8,1.24333568]
[1645256707230,0.00564882,2817.3,2817.1,0.00223108]
[1645256707430,1.09616332,2817.4,2817.1,0.00223108]
[1645256708235,1.09616332,2817.4,2816.8,1.24333568]
[1645256708442,0.00564882,2817.3,2817.1,0.00223106]
[1645256708634,1.09616332,2817.4,2817.1,0.00223106]
[1645256709087,1.17657032,2817.2,2817.1,0.00223106]
[1645256709279,2.34143037,2817.2,2817.1,0.00223106]
[1645256709479,2.34143037,2817.2,2816.8,3.8]
[1645256709679,2.34143037,2817.2,2817.0,0.0022311]
[1645256710681,2.34143037,2817.2,2816.8,0.3]
[1645256710880,2.34143037,2817.2,2817.0,0.00223112]
[1645256711087,0.00564882,2817.1,2817.0,0.00223112]
[1645256711281,2.34143037,2817.2,2817.0,0.00223112]
[1645256711882,1.11312564,2816.9,2816.7,0.00088202]
[1645256713235,1.11312564,2816.9,2816.7,0.00311326]
[1645256713437,0.00564882,2817.1,2816.7,0.00311326]
[1645256713937,0.01840922,2817.1,2816.7,0.00311326]
[1645256714338,2.23090204,2816.9,2816.7,0.00088202]
[1645256714537,3.39576209,2816.9,2816.8,0.00223288]
[1645256715539,3.39576209,2816.9,2816.7,0.00088202]
[1645256715741,2.3297201,2816.9,2816.7,0.00311492]
[1645256716578,2.3297201,2816.9,2816.7,0.00088202]
[1645256716977,2.3297201,2816.9,2816.7,0.00311494]
[1645256717780,2.3297201,2816.9,2816.7,0.00088202]
[1645256718178,2.3297201,2816.9,2816.7,0.00311316]
[1645256718981,2.3297201,2816.9,2816.7,0.00088202]
[1645256719180,2.36640325,2816.9,2816.7,0.00088202]
[1645256719382,1.2015432,2816.9,2816.7,0.00311316]
[1645256719579,0.03668315,2816.9,2816.7,0.00311316]
[1645256719780,2.3297201,2816.8,2816.7,0.00311316]
[1645256720180,2.3297201,2816.8,2816.7,0.00088202]
[1645256723934,2.34243717,2816.8,2816.7,0.00088202]
[1645256724979,2.34135509,2816.8,2816.7,0.00088202]
[1645256725380,1.17757712,2816.8,2816.7,0.00088202]
[1645256725581,2.34135509,2816.8,2816.7,0.00088202]
[1645256732590,2.34135509,2816.8,2816.7,1.72325976]
[1645256732788,2.34135509,2816.8,2816.7,3.02325976]
[1645256733592,2.32863802,2816.8,2816.7,3.03413377]
[1645256734597,1.92492409,2816.8,2816.7,3.03413377]
[1645256734792,1.92492409,2816.8,2816.7,3.93651151]
[1645256735090,1.16377797,2816.8,2816.7,3.93651151]
[1645256735334,1.92492409,2816.8,2816.7,3.93651151]
[1645256736537,1.92492409,2816.8,2816.7,4.02262767]
[1645256736940,1.92492409,2816.8,2816.7,3.93651151]
[1645256739082,1.93654401,2816.8,2816.7,3.91080976]
[1645256741782,1.93654401,2816.8,2816.7,3.00843202]
[1645256742185,1.93654401,2816.8,2816.7,3.91080976]
[1645256746136,1.93654401,2816.8,2816.7,3.02325976]
[1645256748286,1.93654401,2816.8,2816.7,2.12088202]
[1645256748484,1.93654401,2816.8,2816.7,8.07109428]
[1645256751934,1.93654401,2816.8,2816.7,8.06995978]
[1645256752333,1.93413085,2816.8,2816.7,8.06995978]
[1645256752534,0.77276604,2816.8,2816.7,8.06995978]
[1645256752935,1.93413085,2816.8,2816.7,8.06995978]
[1645256753636,1.93413085,2816.8,2816.7,13.06995978]
[1645256753838,1.93413085,2816.8,2816.7,14.38400942]
[1645256754682,1.93413085,2816.8,2816.7,9.38400942]
[1645256754880,1.93413085,2816.8,2816.7,14.38400942]
[1645256756684,1.93413085,2816.8,2816.7,14.91474103]
[1645256756882,0.01113551,2816.9,2816.8,9.5]
[1645256757082,0.01113551,2816.9,2816.8,15.59959328]
[1645256757284,0.01113551,2816.9,2816.8,16.59959328]
[1645256758129,0.01113551,2816.9,2816.8,16.06886167]
[1645256759131,0.01179862,2816.9,2816.8,16.06886167]
[1645256759331,0.01179862,2816.9,2816.8,21.06886167]
[1645256759733,0.01179862,2816.9,2816.8,21.59959328]
[1645256761881,0.01179862,2816.9,2816.8,16.59959328]
[1645256762086,0.01179862,2816.9,2816.8,16.06886167]
[1645256762283,0.01179862,2816.9,2816.8,21.06886167]
[1645256762482,0.01179862,2816.9,2816.8,21.59959328]
[1645256762884,0.01179862,2816.9,2816.8,16.59959328]
[1645256763083,0.01179862,2816.9,2816.8,16.06886167]
[1645256763288,0.00564882,2817.8,2817.1,0.88748]
[1645256763486,1.50656659,2817.7,2817.6,0.94914231]
[1645256763686,1.50656659,2817.7,2817.6,1.24914231]
[1645256764087,1.50656659,2817.9,2817.6,1.54914231]
[1645256764688,3.50564882,2818.0,2817.6,1.54914231]
[1645256764893,1.50656333,2817.9,2817.6,1.54914231]
[1645256766335,1.50656333,2817.9,2817.6,1.24914231]
[1645256766535,1.50656333,2817.9,2817.6,1.54914231]
[1645256766936,0.00564882,2818.0,2817.6,1.54914231]
[1645256767135,1.50650233,2817.9,2817.6,1.54914231]
[1645256768336,1.50650233,2817.9,2817.3,0.79873]
[1645256768641,0.00564882,2817.8,2817.4,0.6]
[1645256769081,0.02058118,2817.9,2817.4,0.6]
[1645256769284,1.50652734,2817.8,2817.4,0.6]
[1645256769484,1.51217616,2817.8,2817.4,0.6]
[1645256769687,0.00564882,2817.8,2817.4,0.6]
[1645256769887,0.02058118,2817.9,2817.4,0.6]
[1645256770184,1.50655263,2817.8,2817.4,0.6]
[1645256770386,1.51220145,2817.8,2817.4,0.6]
[1645256770686,1.50655263,2817.7,2817.4,0.6]
[1645256771082,0.02058118,2817.9,2817.4,0.6]
[1645256771292,1.50656629,2817.8,2817.4,0.6]
[1645256771484,1.51221511,2817.8,2817.4,0.6]
[1645256771685,1.50656629,2817.7,2817.4,0.6]
[1645256771884,1.50656629,2817.7,2817.3,1.78115469]
[1645256772085,0.00564882,2817.7,2817.3,1.78348995]
[1645256772285,0.02058118,2817.9,2817.3,1.78348995]
[1645256772487,1.5065794,2817.8,2817.3,1.78348995]
[1645256772685,1.51222822,2817.8,2817.3,1.78348995]
[1645256772934,1.5065794,2817.7,2817.3,1.78348995]
[1645256773132,1.5065794,2817.7,2817.3,4.35474229]
[1645256773336,1.5065794,2817.7,2817.3,4.35707753]
[1645256773533,1.5284431,2817.7,2817.3,4.35707753]
[1645256773731,0.0218637,2817.7,2817.3,4.35707753]
[1645256773935,1.50656431,2817.6,2817.3,4.35707753]
[1645256774132,1.51221313,2817.6,2817.3,4.35707753]
[1645256774332,0.00564882,2817.6,2817.3,4.35474229]
[1645256774531,0.0218637,2817.7,2817.3,4.35707749]
[1645256775531,0.0218637,2817.7,2817.3,4.35474229]
[1645256775733,1.50655995,2817.6,2817.3,4.35694548]
[1645256775932,1.51220877,2817.6,2817.3,4.35694548]
[1645256776131,0.00564882,2817.6,2817.3,4.35694548]
[1645256776333,0.0218637,2817.7,2817.3,4.35694548]
[1645256776591,1.50656542,2817.6,2817.3,1.78335788]
[1645256776786,1.51221424,2817.6,2817.3,1.78115469]
[1645256776987,0.00564882,2817.6,2817.3,1.78335788]
[1645256777188,0.0218637,2817.7,2817.3,1.78335788]
[1645256777385,1.50658687,2817.6,2817.3,1.78335788]
[1645256777586,1.51223569,2817.6,2817.3,1.78335788]
[1645256777788,0.00564882,2817.6,2817.3,0.00220319]
[1645256777989,1.50660712,2817.5,2817.1,1.20060655]
[1645256778188,0.00564882,2817.5,2817.3,0.00220317]
[1645256778390,0.03302877,2817.6,2817.3,0.00220317]
[1645256778588,1.50661138,2817.5,2817.3,0.00220317]
[1645256779192,1.50661138,2817.5,2817.2,0.86434994]
[1645256779392,1.5122602,2817.5,2817.3,0.00222065]
[1645256779591,0.03302877,2817.6,2817.3,0.00222065]
[1645256779790,1.50662258,2817.5,2817.3,0.00222065]
[1645256780195,1.50512382,2817.5,2817.3,0.00222065]
[1645256780437,1.50512382,2817.5,2817.2,1.46434994]
[1645256780634,1.51077264,2817.5,2817.3,0.00222065]
[1645256780834,0.03302877,2817.6,2817.3,0.00222065]
[1645256781435,0.03302877,2817.6,2817.2,1.46434994]
[1645256781838,0.03302877,2817.6,2817.3,0.00222066]
[1645256782435,0.00564882,2818.0,2817.3,0.00222066]
[1645256782633,0.00564882,2818.0,2817.2,1.46434994]
[1645256783039,0.00564882,2818.0,2817.3,0.00221875]
[1645256783635,0.02178109,2817.4,2817.3,0.00221875]
[1645256783835,0.02178109,2817.4,2817.2,1.46434994]
[1645256784076,0.02178109,2817.4,2817.3,0.00221883]
[1645256785181,0.02178109,2817.4,2817.2,1.46434994]
[1645256785382,0.02178109,2817.4,2817.2,1.4665687]
[1645256786385,0.02178109,2817.4,2817.2,1.46434994]
[1645256786584,0.02178109,2817.4,2817.2,1.46656892]
[1645256788129,0.02178109,2817.4,2817.2,0.86656892]
[1645256788332,0.02178109,2817.4,2817.2,1.46656892]
[1645256788731,0.02178109,2817.4,2817.2,1.46434994]
[1645256788933,0.00564882,2818.0,2817.3,0.04590301]
[1645256789735,5.27024882,2818.1,2817.3,0.04590301]
[1645256790132,5.27024882,2818.1,2817.3,0.04812202]
[1645256791136,5.27024882,2818.1,2817.3,0.04590301]
[1645256791333,5.27024882,2818.1,2817.3,0.04812204]
[1645256792385,5.27024882,2818.1,2817.3,0.04590301]
[1645256792586,5.27024882,2818.1,2817.3,0.04812204]
[1645256792788,1.77024882,2818.1,2817.3,0.04812204]
[1645256792986,5.27024882,2818.1,2817.3,0.04812204]
[1645256793488,5.27024882,2818.1,2817.2,2.36495649]
[1645256793489,5.27024882,2818.1,2817.5,0.03647876]
[1645256796333,1.77024882,2818.1,2817.5,0.03647876]
[1645256796532,5.27024882,2818.1,2817.5,0.03647876]
[1645256797934,1.77024882,2818.1,2817.5,0.03647876]
[1645256798338,5.27024882,2818.1,2817.5,0.03647876]
[1645256798936,5.27024882,2818.1,2817.3,0.00221906]
[1645256799581,5.27024882,2818.1,2817.2,2.36495649]
[1645256799782,5.27024882,2818.1,2817.3,0.00221902]
[1645256800186,1.50656749,2818.0,2817.3,0.00221902]
[1645256800783,1.50656749,2818.0,2817.2,2.36495649]
[1645256800982,1.50656749,2818.0,2817.3,0.002219]
[1645256801981,1.50656749,2818.0,2817.2,2.36495649]
[1645256802182,1.50656749,2818.0,2817.3,0.002219]
[1645256803043,1.50656749,2818.0,2817.2,2.36495649]
[1645256803242,1.50656749,2818.0,2817.3,0.002219]
[1645256803444,1.50656749,2818.0,2817.3,0.90282555]
[1645256804047,1.50656749,2818.0,2817.6,0.90060655]
[1645256804444,1.50656749,2818.0,2817.6,1.20060655]
[1645256804645,1.50656749,2818.0,2817.6,1.50060655]
[1645256805246,1.50656749,2818.0,2817.6,2.29920655]
[1645256805449,1.50656749,2818.0,2817.6,4.07386335]
[1645256805645,1.50656749,2818.0,2817.7,0.3]
[1645256805845,1.50656749,2818.0,2817.7,1.3]
[1645256806784,1.50656749,2818.0,2817.7,0.3]
[1645256806995,1.50656749,2818.0,2817.7,1.3]
[1645256808184,1.50656749,2818.0,2817.7,0.3]
[1645256808384,1.50656749,2818.0,2817.7,1.3]
[1645256808786,1.50656749,2818.0,2817.7,0.3]
[1645256808991,1.50656749,2818.0,2817.6,1.20060655]
[1645256809387,1.50656749,2818.0,2817.5,2.50060655]
[1645256809584,1.50656749,2818.0,2817.5,1.50060655]
[1645256809785,1.50656749,2818.0,2817.5,2.50060655]
[1645256810186,1.50656749,2818.0,2817.6,0.8873244]
[1645256810446,1.50656749,2818.0,2817.8,0.7986]
[1645256810645,1.50656749,2818.0,2817.9,0.3]
[1645256812445,1.50497159,2818.0,2817.9,0.3]
[1645256813845,1.4677783,2818.0,2817.9,0.3]
[1645256819235,1.4677783,2818.0,2817.7,0.3]
[1645256819735,1.4677783,2818.0,2817.6,1.1873564]
[1645256820334,1.4677783,2818.0,2817.6,2.0746864]
[1645256820632,1.4677783,2818.0,2817.6,3.0746864]
[1645256821434,1.77024882,2818.1,2817.6,3.0746864]
[1645256822783,1.77024882,2818.1,2817.6,3.5946864]
[1645256823486,1.77024882,2818.1,2817.8,0.04901323]
[1645256823686,6.28211805,2818.6,2817.8,0.93628323]
[1645256823892,4.38221805,2818.6,2817.8,0.93628323]
[1645256824084,4.38221805,2818.6,2817.8,1.53628323]
[1645256824484,4.38221805,2818.6,2817.8,0.64901323]
[1645256824685,4.38,2818.6,2817.8,0.64901323]
[1645256824886,4.38221819,2818.6,2817.8,0.64901323]
[1645256825937,4.38,2818.6,2817.8,0.64901323]
[1645256826136,4.38221819,2818.6,2817.8,0.64901323]
[1645256826742,4.38221819,2818.6,2818.2,0.95629923]
[1645256826938,3.24961819,2818.6,2818.2,0.95629923]
[1645256827137,3.5,2818.7,2818.2,0.95629923]
[1645256827337,0.00221826,2818.6,2818.2,0.95629923]
[1645256828339,1.0823127,2818.8,2818.2,0.95629923]
[1645256828543,0.00221826,2818.6,2818.2,0.95629923]
[1645256829492,3.5,2818.7,2818.2,0.95629923]
[1645256829688,0.00221826,2818.6,2818.2,0.95629923]
[1645256830689,1.0823127,2818.8,2818.2,0.95629923]
[1645256830988,0.00221826,2818.6,2818.2,0.95629923]
[1645256831793,0.00221826,2818.6,2818.2,1.25629923]
[1645256831994,1.0,2819.0,2818.3,0.79845]
[1645256832199,1.0,2819.0,2818.3,1.79845]
[1645256832200,0.00221826,2818.6,2818.3,1.79845]
[1645256832392,0.00221826,2818.6,2818.3,2.98551]
[1645256832594,0.00221826,2818.6,2818.4,0.52]
[1645256833037,1.0,2819.0,2818.4,0.82]
[1645256833241,1.0,2819.0,2818.6,1.6853524]
[1645256833441,1.0,2819.0,2818.6,3.0923624]
[1645256833640,1.0,2819.0,2818.7,0.3]
[1645256833840,1.5060048,2818.9,2818.7,0.3]
[1645256834741,1.0,2819.0,2818.7,0.3]
[1645256835238,1.0,2819.0,2818.7,1.09829]
[1645256835440,1.0,2819.0,2818.8,0.88696]
[1645256835839,1.0,2819.0,2818.8,2.0739115]
[1645256836242,1.0,2819.0,2818.8,3.0739115]
[1645256836891,1.0,2819.0,2818.9,2.01076136]
[1645256837092,1.0,2819.0,2818.9,2.83076136]
[1645256837093,1.00082618,2819.0,2818.9,2.83076136]